bitfinex-derivatives/quotes_ETHF0:USTF0_20240923
["timestamp","ask_amount","ask_price","bid_price","bid_amount"]
[1727111784584,0.37458,2669.5,2669.3,40.8]
[1727111784784,2.63,2669.4,2668.8,0.9372]
[1727111784983,2.63,2669.4,2668.6,1.0045]
[1727111784984,0.37466,2668.9,2668.7,0.37468]
[1727111785285,3.2078,2669.2,2668.6,1.8897]
[1727111785286,0.37465,2669.0,2668.8,0.37466]
[1727111785886,0.37464,2669.1,2668.6,40.8]
[1727111786083,0.9184,2669.0,2668.9,0.37465]
[1727111786485,1.29305,2669.0,2668.8,0.37467]
[1727111786989,1.29305,2669.0,2668.6,0.3747]
[1727111786990,0.37468,2668.8,2668.6,0.3747]
[1727111787588,0.9184,2669.0,2668.1,0.9175]
[1727111787589,6.955,2668.7,2668.1,4.1253]
[1727111787784,0.93677,2668.6,2668.0,2.63]
[1727111787985,0.37475,2668.3,2668.0,3.00478]
[1727111788181,0.37475,2668.3,2668.0,43.80478]
[1727111788995,3.58254,2668.4,2668.1,0.37477]
[1727111789193,3.2078,2668.4,2668.0,43.43]
[1727111789489,3.58254,2668.4,2668.1,0.37477]
[1727111789891,3.2078,2668.4,2668.2,0.37475]
[1727111790493,3.2078,2668.4,2668.2,3.00475]
[1727111790798,0.37473,2668.5,2668.2,3.00476]
[1727111790996,3.58251,2668.6,2668.3,0.37475]
[1727111791199,3.2078,2668.6,2668.2,2.63]
[1727111791401,0.37472,2668.5,2668.2,3.00476]
[1727111791898,3.2078,2668.6,2668.2,2.63]
[1727111792197,0.37477,2668.2,2668.0,40.8]
[1727111792393,0.37477,2668.1,2668.0,40.8]
[1727111792598,3.2078,2668.3,2668.0,40.8]
[1727111792791,1.30827,2668.2,2668.0,41.17479]
[1727111793193,0.37479,2668.0,2667.9,2.63]
[1727111793392,1.30827,2668.2,2668.0,0.37478]
[1727111793588,0.9335,2668.2,2667.9,43.43]
[1727111793789,3.2078,2668.0,2666.9,0.753]
[1727111793990,3.2078,2668.0,2666.7,3.2078]
[1727111793991,4.14494,2667.6,2667.0,2.63]
[1727111794193,4.14494,2667.6,2666.7,4.259]
[1727111794194,4.14503,2667.3,2666.7,1.33917]
[1727111794400,0.37494,2666.9,2666.8,40.8]
[1727111795103,3.58274,2667.0,2666.8,40.8]
[1727111795398,3.2078,2667.0,2666.9,0.37494]
[1727111795603,0.37494,2666.9,2666.8,43.43]
[1727111795802,0.37494,2666.9,2666.8,40.8]
[1727111796100,4.12454,2666.9,2666.8,40.8]
[1727111797496,0.37499,2666.6,2666.3,0.37502]
[1727111797699,3.58279,2666.6,2666.3,0.37502]
[1727111797889,3.58279,2666.6,2666.4,40.8]
[1727111798298,6.9582,2666.6,2666.0,0.37507]
[1727111798505,0.37503,2666.4,2665.9,0.8881]
[1727111798800,3.2078,2666.6,2666.0,40.8]
[1727111799001,0.37501,2666.5,2666.2,0.37503]
[1727111800302,0.37503,2666.3,2666.1,0.37505]
[1727111800903,4.1453,2666.6,2666.0,41.17506]
[1727111801102,0.93761,2666.2,2665.6,1.33092]
[1727111801299,0.9658,2666.1,2665.5,3.2078]
[1727111801499,0.37508,2666.0,2665.5,3.2078]
[1727111801708,0.37508,2665.9,2665.6,40.8]
[1727111801907,0.37508,2665.9,2665.8,0.3751]
[1727111802200,3.58288,2666.0,2665.8,0.3751]
[1727111802608,0.37508,2665.9,2665.8,0.3751]
[1727111802798,0.37508,2665.9,2665.7,0.3751]
[1727111802998,0.37508,2665.9,2665.2,4.1353]
[1727111802999,0.37519,2665.2,2665.0,0.4622]
[1727111803200,0.93787,2665.5,2664.8,0.37523]
[1727111803201,0.37522,2665.0,2664.8,0.37523]
[1727111803405,0.37518,2665.3,2665.1,0.37519]
[1727111803602,3.2078,2665.5,2665.0,0.3752]
[1727111803800,0.37517,2665.3,2665.1,0.37519]
[1727111803996,8.1672,2665.8,2664.9,40.8]
[1727111803997,0.37516,2665.4,2664.9,40.8]
[1727111804205,0.37516,2665.4,2665.2,0.37518]
[1727111804610,9.10495,2665.8,2664.9,40.8]
[1727111804904,0.93782,2665.7,2665.1,0.37519]
[1727111805105,0.37516,2665.4,2665.1,0.37519]
[1727111805406,0.37516,2665.4,2665.2,0.37518]
[1727111807413,0.37518,2665.3,2664.9,40.8]
[1727111807634,0.37521,2665.0,2664.9,40.8]
[1727111808005,0.3752,2665.1,2664.9,41.17522]
[1727111808500,0.37518,2665.2,2665.0,0.37521]
[1727111809209,0.3752,2665.1,2665.0,0.37521]
[1727111809507,0.8869,2665.3,2664.9,41.17522]
[1727111809508,0.37521,2665.0,2664.9,41.17522]
[1727111809811,0.37521,2665.0,2664.9,40.8]
[1727111810208,0.37528,2664.6,2664.4,0.9158]
[1727111810413,0.37528,2664.6,2664.4,0.37529]
[1727111810902,0.37528,2664.6,2664.5,0.37528]
[1727111811098,0.37526,2664.7,2664.1,0.93835]
[1727111811308,0.93809,2664.9,2664.2,40.8]
[1727111811708,0.37527,2664.6,2664.5,0.37527]
[1727111812812,0.37528,2664.5,2664.4,0.37528]
[1727111813206,0.37527,2664.6,2664.5,0.37528]
[1727111813509,0.37529,2664.5,2664.4,0.37529]
[1727111813904,4.1384,2665.0,2664.2,40.8]
[1727111814204,4.1384,2665.0,2664.7,0.37525]
[1727111814205,0.37525,2664.8,2664.7,0.37525]
[1727111814539,0.37523,2664.9,2664.8,0.37523]
[1727111815400,3.2078,2665.0,2664.9,0.37522]
[1727111815605,0.37523,2664.9,2664.8,0.37523]
[1727111815815,0.37522,2664.9,2664.8,0.37523]
[1727111817211,0.37525,2664.8,2664.7,0.37524]
[1727111818511,0.37523,2664.9,2664.8,0.37523]
[1727111818705,0.37522,2664.9,2664.8,0.37523]
[1727111820712,3.58298,2665.2,2665.1,0.3752]
[1727111821015,3.58298,2665.2,2665.0,0.3752]
[1727111821016,0.37521,2665.1,2665.0,0.3752]
[1727111821409,3.58299,2665.2,2665.1,0.3752]
[1727111821613,3.58299,2665.2,2665.1,41.1752]
[1727111821808,0.8869,2665.3,2665.2,0.37518]
[1727111822012,6.722,2665.5,2665.1,40.8]
[1727111822013,7.09715,2665.5,2665.1,40.8]
[1727111822208,0.9682,2665.6,2665.5,0.37514]
[1727111822406,0.37512,2665.7,2665.3,2.64]
[1727111822613,1.28141,2665.8,2665.3,3.57791]
[1727111822814,1.28141,2665.8,2665.7,0.37511]
[1727111823009,1.28141,2665.8,2665.6,0.37512]
[1727111823010,0.37512,2665.7,2665.6,0.37512]
[1727111823211,1.28141,2665.8,2665.6,0.37512]
[1727111823413,0.9063,2665.8,2665.7,0.37511]
[1727111823731,3.2078,2666.0,2665.9,0.37508]
[1727111823932,6.959,2666.0,2665.9,0.37508]
[1727111824121,3.2078,2666.0,2665.9,0.37508]
[1727111824429,3.2078,2666.0,2665.4,0.93789]
[1727111824612,0.93772,2665.9,2665.5,0.37514]
[1727111824815,0.37513,2665.6,2665.5,0.37514]
[1727111825022,0.93772,2665.9,2665.3,3.58296]
[1727111825222,0.37515,2665.4,2665.3,0.37516]
[1727111825418,0.93781,2665.7,2665.5,0.37513]
[1727111825419,0.37512,2665.7,2665.5,0.37513]
[1727111825622,0.37512,2665.7,2665.6,0.37513]
[1727111825924,3.58291,2665.8,2665.6,0.37511]
[1727111826519,0.93765,2666.1,2665.2,5.94034]
[1727111826520,3.2078,2666.1,2665.2,5.94034]
[1727111826717,3.2078,2666.1,2665.4,0.93789]
[1727111826919,0.37509,2665.9,2665.7,0.3751]
[1727111827717,0.3751,2665.8,2665.7,0.3751]
[1727111828323,0.37509,2665.9,2665.8,0.3751]
[1727111828824,0.3751,2665.8,2665.7,0.3751]
[1727111829019,0.37511,2665.7,2665.6,0.37511]
[1727111830717,3.2078,2665.8,2665.3,4.014]
[1727111830918,0.9272,2665.6,2665.5,0.37514]
[1727111831215,3.2078,2666.1,2665.2,10.11831]
[1727111831424,0.37505,2666.2,2666.1,0.37506]
[1727111831926,0.37505,2666.2,2666.1,0.37505]
[1727111832227,3.58282,2666.4,2666.3,0.37503]
[1727111832819,0.9736,2666.6,2666.0,0.93767]
[1727111833020,3.58278,2666.7,2666.2,0.9376]
[1727111833230,3.58278,2666.7,2666.6,0.37498]
[1727111833428,0.375,2666.5,2666.4,0.37501]
[1727111834026,3.2078,2666.7,2666.3,41.17502]
[1727111834331,0.37501,2666.4,2666.3,40.8]
[1727111834633,3.2078,2666.7,2666.4,0.37501]
[1727111835629,9.20068,2667.2,2666.3,40.8]
[1727111835834,5.0867,2667.2,2666.4,1.8108]
[1727111836134,0.37494,2667.0,2666.8,0.37496]
[1727111836926,5.0867,2667.2,2666.5,0.8993]
[1727111837126,3.2078,2667.2,2667.1,0.37492]
[1727111837528,3.2078,2667.2,2666.6,4.14527]
[1727111837734,0.37487,2667.5,2666.7,4.95044]
[1727111837932,5.99651,2667.7,2667.2,0.37489]
[1727111838133,0.37487,2667.5,2667.3,0.37489]
[1727111838432,0.37485,2667.6,2667.5,0.37486]
[1727111838742,4.1131,2667.7,2667.1,0.9373]
[1727111838939,0.37481,2667.9,2667.7,0.37482]
[1727111839238,12.07788,2668.3,2667.2,4.1456]
[1727111839239,0.37475,2668.3,2667.5,4.14494]
[1727111839538,7.2898,2668.5,2668.0,0.37478]
[1727111839830,7.2898,2668.5,2667.6,41.687]
[1727111839831,0.37473,2668.4,2667.6,41.687]
[1727111840025,3.2078,2668.5,2668.1,0.37477]
[1727111840228,0.37473,2668.5,2667.8,0.93702]
[1727111840426,0.37473,2668.5,2668.2,0.37475]
[1727111840626,0.37473,2668.5,2667.9,0.9378]
[1727111840627,3.2078,2668.5,2668.1,4.38777]
[1727111840831,0.37473,2668.4,2668.1,4.38777]
[1727111841033,0.37473,2668.4,2668.2,0.37476]
[1727111841240,3.2078,2668.5,2667.9,0.9378]
[1727111841424,0.37477,2668.2,2668.0,0.37478]
[1727111841629,0.93684,2668.4,2668.0,0.37478]
[1727111841836,0.93684,2668.4,2667.9,0.9378]
[1727111842333,0.93684,2668.4,2668.0,0.37479]
[1727111842533,0.37477,2668.2,2668.0,0.37479]
[1727111842734,3.2078,2668.5,2667.9,0.9378]
[1727111842931,3.2078,2668.5,2668.0,1.88648]
[1727111843130,0.37476,2668.3,2668.1,0.37476]
[1727111843332,0.37477,2668.2,2668.0,0.37478]
[1727111843724,0.37477,2668.2,2667.9,0.9378]
[1727111843935,0.37477,2668.2,2668.0,0.37478]
[1727111844142,0.37477,2668.2,2667.9,0.9378]
[1727111844143,0.37479,2668.0,2667.9,0.9378]
[1727111844339,0.37479,2668.0,2667.8,7.59461]
[1727111844639,0.37478,2668.1,2667.9,0.3748]
[1727111845238,0.37478,2668.1,2667.8,3.2078]
[1727111845239,0.3748,2668.0,2667.8,3.58261]
[1727111845641,0.3748,2667.9,2667.8,3.58261]
[1727111845835,0.37479,2668.0,2667.8,3.58261]
[1727111846237,0.3748,2667.9,2667.8,3.2078]
[1727111846443,0.93691,2668.2,2667.8,3.58262]
[1727111846444,0.3748,2668.0,2667.8,3.58262]
[1727111846951,0.37478,2668.1,2667.9,0.3748]
[1727111847134,0.37475,2668.3,2668.1,0.37477]
[1727111847334,3.2078,2668.5,2668.3,0.37475]
[1727111847335,0.37473,2668.5,2668.3,0.37475]
[1727111847540,0.37473,2668.5,2667.9,41.73699]
[1727111847541,0.37472,2668.5,2667.9,41.73699]
[1727111847739,0.37471,2668.6,2668.4,0.37472]
[1727111847941,0.37471,2668.6,2668.4,0.37473]
[1727111848638,3.2078,2668.8,2668.7,0.37469]
[1727111848843,0.37469,2668.8,2668.6,0.3747]
[1727111849236,0.37469,2668.7,2668.5,0.37471]
[1727111849441,0.37469,2668.7,2668.6,0.3747]
[1727111849747,0.3747,2668.6,2668.4,0.37472]
[1727111850042,0.3747,2668.6,2668.5,0.37472]
[1727111850239,0.37472,2668.5,2668.3,5.7192]
[1727111850439,0.37472,2668.5,2668.4,0.37473]
[1727111851042,0.37471,2668.6,2668.4,0.37473]
[1727111851556,0.37473,2668.5,2668.3,6.09394]
[1727111851846,0.37473,2668.4,2668.3,1.26745]
[1727111852043,0.93675,2668.7,2668.3,1.26745]
[1727111852234,0.37473,2668.4,2668.3,0.8927]
[1727111852439,0.37473,2668.4,2668.3,1.26745]
[1727111852747,0.93684,2668.4,2667.9,40.8]
[1727111852943,0.37476,2668.2,2668.1,0.37477]
[1727111853241,0.37476,2668.2,2668.0,0.37478]
[1727111853644,0.93685,2668.4,2667.9,41.17479]
[1727111853949,0.37477,2668.2,2668.0,0.37479]
[1727111854245,0.93687,2668.3,2668.0,0.37479]
[1727111854439,1.5375,2668.5,2667.9,43.43]
[1727111854640,0.37475,2668.3,2668.2,0.37476]
[1727111855041,0.37475,2668.3,2668.1,0.37476]
[1727111855441,5.68211,2668.5,2668.1,0.37476]
[1727111855648,0.37475,2668.3,2668.2,0.37476]
[1727111856238,1.5375,2668.5,2667.9,44.367]
[1727111856452,0.37472,2668.6,2668.5,0.37472]
[1727111856647,0.3747,2668.7,2668.5,0.37472]
[1727111856850,3.2078,2668.8,2668.5,0.37472]
[1727111857152,0.3747,2668.6,2668.5,0.37472]
[1727111857348,0.37468,2668.8,2668.4,2.63]
[1727111857543,2.47707,2668.9,2668.5,0.778]
[1727111857746,0.3747,2668.6,2668.5,0.778]
[1727111858854,0.37475,2668.3,2668.2,2.63]
[1727111859061,0.37475,2668.3,2668.2,0.37476]
[1727111859352,0.93682,2668.5,2668.2,0.37476]
[1727111859550,0.37476,2668.3,2668.2,0.37476]
[1727111859749,0.37478,2668.1,2668.0,0.37478]
[1727111860146,0.37477,2668.2,2668.1,0.37477]
[1727111860448,0.37479,2668.0,2667.9,44.62129]
[1727111860755,0.37478,2668.1,2668.0,0.37479]
[1727111861139,0.37479,2668.0,2667.9,44.62129]
[1727111861340,0.37479,2668.0,2667.9,41.6165]
[1727111861649,0.37479,2668.0,2667.9,41.1748]
[1727111862053,0.37478,2668.1,2668.0,0.37478]
[1727111862250,0.37477,2668.2,2668.1,0.37476]
[1727111862741,1.18446,2668.3,2668.2,0.37476]
[1727111862945,0.37474,2668.4,2668.3,0.37473]
[1727111863152,0.93678,2668.6,2668.1,2.63]
[1727111863455,0.37474,2668.4,2668.3,0.37474]
[1727111863652,0.37474,2668.4,2668.1,2.63]
[1727111863653,0.37475,2668.3,2668.2,0.37475]
[1727111863845,0.9368,2668.5,2668.0,0.8079]
[1727111864053,0.37477,2668.2,2668.1,0.37477]
[1727111864552,0.93684,2668.4,2668.3,0.37474]
[1727111864553,0.37474,2668.4,2668.3,0.37474]
[1727111864760,0.93677,2668.6,2668.1,3.56694]
[1727111865053,0.37473,2668.5,2668.4,0.37473]
[1727111865249,0.37474,2668.4,2668.3,0.37474]
[1727111865644,0.93682,2668.5,2668.2,0.37476]
[1727111865845,0.37476,2668.3,2668.2,0.37476]
[1727111866150,0.93682,2668.5,2668.3,0.37474]
[1727111866151,0.37474,2668.4,2668.3,0.37474]
[1727111866552,0.37475,2668.3,2668.2,0.37476]
[1727111866763,0.37474,2668.4,2668.3,0.37474]
[1727111867353,2.47265,2668.7,2668.2,0.37475]
[1727111867354,0.37476,2668.3,2668.2,0.37475]
[1727111867859,0.93681,2668.5,2668.3,0.37474]
[1727111867860,0.37474,2668.4,2668.3,0.37474]
[1727111868861,1.5359,2668.7,2668.2,0.37475]
[1727111868862,0.37475,2668.3,2668.2,0.37475]
[1727111869654,0.37476,2668.2,2668.1,3.00477]
[1727111870058,0.37476,2668.2,2668.1,2.63]
[1727111870255,1.31167,2668.2,2668.1,2.63]
[1727111870462,0.37477,2668.1,2668.0,0.8079]
[1727111870659,0.93686,2668.4,2667.9,43.43]
[1727111870854,0.37477,2668.2,2668.1,0.37476]
[1727111871753,0.37478,2668.1,2668.0,0.37478]
[1727111872155,0.37478,2668.1,2668.0,3.748]
[1727111872356,0.37478,2668.1,2668.0,4.12279]
[1727111872758,0.37478,2668.1,2668.0,0.37479]
[1727111872962,0.37476,2668.3,2668.2,0.37475]
[1727111873259,0.37476,2668.3,2668.2,3.00475]
[1727111880274,0.37477,2668.1,2668.0,2.63]
[1727111880575,0.37477,2668.1,2668.0,3.00477]
[1727111881473,1.82252879,2668.3,2668.2,0.37475]
[1727111881668,1.82252879,2668.3,2668.2,3.00475]
[1727111881669,0.37476,2668.3,2668.2,3.00475]
[1727111882368,1.82252879,2668.3,2668.2,3.00475]
[1727111883268,0.37476,2668.3,2668.2,3.00475]
[1727111883473,0.56223015,2668.3,2668.2,3.00475]
[1727111883662,2.50264844,2668.3,2668.2,3.00475]
[1727111884064,0.18747015,2668.3,2668.2,3.00475]
[1727111884265,0.37475,2668.3,2668.2,3.00475]
[1727111884475,2.12788844,2668.3,2668.2,3.94166]
[1727111884673,1.94041829,2668.4,2668.3,0.37475]
[1727111884865,2.50260986,2668.4,2668.3,0.37475]
[1727111885264,2.50261214,2668.4,2668.3,0.37475]
[1727111885464,2.12788214,2668.4,2668.3,0.37475]
[1727111886175,2.13347703,2668.4,2668.3,0.37475]
[1727111886474,0.37477,2668.2,2668.1,0.37476]
[1727111886666,1.31171,2668.1,2668.0,2.63]
[1727111886869,1.31177,2668.0,2667.9,40.8]
[1727111887067,1.49923385,2668.0,2667.9,40.8]
[1727111887271,3.44552016,2668.0,2667.9,40.8]
[1727111887572,2.50854016,2668.0,2667.9,41.1748]
[1727111887777,0.37479,2668.0,2667.9,41.1748]
[1727111888275,3.35356363,2668.1,2668.0,0.37479]
[1727111888480,3.35356363,2668.1,2668.0,3.00479]
[1727111888481,1.89398,2668.1,2668.0,3.00479]
[1727111890771,1.5192,2668.1,2668.0,3.00479]
[1727111890977,0.7546,2668.1,2668.0,3.94177]
[1727111891283,1.83432363,2668.4,2668.3,0.37475]
[1727111891869,1.45958363,2668.4,2668.3,0.37475]
[1727111892071,2.60631363,2668.5,2668.4,0.37473]
[1727111895494,2.79377933,2668.5,2668.4,0.37473]
[1727111896780,2.60631363,2668.5,2668.4,0.37473]
[1727111896989,2.79377866,2668.5,2668.4,0.37473]
[1727111898176,1.45958363,2668.5,2668.4,0.37473]
[1727111898380,0.97255305,2668.5,2668.4,12.10912612]
[1727111898582,0.97255305,2668.8,2668.7,0.37469]
[1727111898783,0.97255305,2668.8,2668.7,3.98730187]
[1727111898975,0.97255305,2668.8,2668.7,5.05534175]
[1727111899180,0.97255305,2668.8,2668.7,3.98730187]
[1727111899379,0.97255305,2669.0,2668.8,0.37468]
[1727111899589,0.97255305,2669.1,2669.0,0.37465]
[1727111899784,0.97255305,2669.2,2669.1,0.37463]
[1727111899983,1.34717305,2669.2,2669.1,41.17463]
[1727111900293,0.97255305,2669.2,2669.1,41.17463]
[1727111900586,1.34717305,2669.2,2669.1,41.17463]
[1727111901374,0.37462,2669.2,2669.1,41.17463]
[1727111901981,2.80747789,2669.2,2669.1,41.17463]
[1727111902382,1.77643352,2669.2,2669.1,41.17463]
[1727111902684,0.18741462,2669.2,2669.1,41.17463]
[1727111903186,0.56203462,2669.2,2669.1,41.17463]
[1727111903386,2.43285789,2669.3,2669.2,0.37462]
[1727111903587,2.12925809,2669.3,2669.2,0.37462]
[1727111903883,2.12925809,2669.3,2669.2,4.51898]
[1727111904087,0.18741129,2669.3,2669.2,4.51898]
[1727111904390,4.33933789,2669.5,2669.4,0.37459]
[1727111904590,6.11415381,2669.5,2669.4,0.37459]
[1727111905491,2.09387306,2669.5,2669.4,0.37459]
[1727111905885,6.67519546,2669.5,2669.1,43.43]
[1727111906085,1.82974688,2669.2,2669.1,43.80462]
[1727111906301,0.56201306,2669.2,2669.1,43.80462]
[1727111906481,0.18739306,2669.2,2669.1,43.80462]
[1727111906681,1.82964167,2669.2,2669.1,43.80462]
[1727111906881,0.56201306,2669.2,2669.1,3.00462]
[1727111907285,1.82972106,2669.2,2669.1,3.00462]
[1727111907488,2.01711412,2669.2,2669.1,3.00462]
[1727111907688,0.56201306,2669.2,2669.1,3.00462]
[1727111908295,2.50218224,2669.2,2669.1,3.00462]
[1727111908585,0.18739306,2669.2,2669.1,3.00462]
[1727111908785,0.56203362,2669.2,2669.1,3.00462]
[1727111909390,1.8297108,2669.2,2669.1,3.00462]
[1727111909591,2.01712442,2669.2,2669.1,3.00462]
[1727111909790,2.0171219,2669.2,2669.1,3.00462]
[1727111910089,0.37462,2669.2,2669.1,3.00462]
[1727111915094,0.93649,2669.4,2669.1,2.63]
[1727111915395,0.37462,2669.2,2669.1,3.00462]
[1727111916989,1.31122,2669.1,2669.0,40.8]
[1727111917190,1.31122,2669.1,2668.5,0.3747]
[1727111917191,0.37472,2668.6,2668.5,0.3747]
[1727111917595,0.93674,2668.7,2668.6,0.37469]
[1727111917596,0.3747,2668.7,2668.6,0.37469]
[1727111917893,0.3747,2668.7,2667.9,0.98250747]
[1727111917894,0.37479,2668.0,2667.9,0.98250747]
[1727111918192,4.0850908,2668.7,2667.8,0.37481]
[1727111918193,5.11330347,2668.2,2667.8,0.37481]
[1727111918390,0.37479,2668.1,2667.6,2.63]
[1727111918590,2.63,2668.0,2667.6,0.7716]
[1727111918790,0.37489,2667.3,2667.2,0.087]
[1727111918986,3.2078,2667.7,2666.7,3.2078]
[1727111918987,0.37491,2667.2,2666.7,3.2078]
[1727111919191,0.37491,2667.2,2666.8,41.17495]
[1727111919394,1.13899,2667.3,2666.8,40.8]
[1727111919596,1.13899,2667.3,2666.9,0.37493]
[1727111919799,1.13899,2667.3,2666.8,40.8]
[1727111919997,1.13899,2667.3,2666.9,0.37494]
[1727111920297,1.13899,2667.3,2666.8,40.8]
[1727111920298,0.7641,2667.3,2666.8,40.8]
[1727111920496,0.37491,2667.2,2666.8,40.8]
[1727111920694,0.37491,2667.2,2666.8,41.17495]
[1727111921098,0.7641,2667.3,2666.4,0.98250747]
[1727111921099,2.63,2667.0,2666.4,0.98250747]
[1727111921397,2.63,2666.6,2665.9,0.37508]
[1727111921703,0.37502,2666.4,2665.9,0.37508]
[1727111922088,0.37502,2666.4,2666.0,40.8]
[1727111923505,0.37503,2666.3,2666.0,40.8]
[1727111923738,0.37506,2666.1,2665.8,0.7957]
[1727111924000,0.37508,2665.9,2665.8,0.7957]
[1727111924192,5.8378,2665.9,2665.2,4.005]
[1727111924395,0.93768,2666.0,2665.2,4.005]
[1727111924396,3.2078,2665.6,2665.2,0.7846]
[1727111924601,0.37516,2665.4,2665.2,0.7846]
[1727111924905,0.37515,2665.5,2665.2,0.7846]
[1727111925399,0.37515,2665.4,2665.2,0.7846]
[1727111925901,0.37515,2665.4,2665.2,41.5846]
[1727111926201,3.2078,2665.6,2665.2,41.5846]
[1727111926202,0.37515,2665.5,2665.2,41.5846]
[1727111926405,0.37516,2665.4,2665.2,41.5846]
[1727111926704,3.58294,2665.6,2665.2,41.5846]
[1727111926926,3.2078,2665.6,2665.3,2.63]
[1727111927205,3.2078,2665.6,2665.2,41.5846]
[1727111927402,3.58293,2665.6,2665.2,41.5846]
[1727111929212,3.58293,2665.6,2665.2,41.95978]
[1727111929605,3.58293,2665.6,2665.2,41.5846]
[1727111930302,3.2078,2665.6,2665.2,41.95977]
[1727111930911,3.58293,2665.6,2665.2,41.95978]
[1727111931207,3.2078,2665.6,2665.2,41.95978]
[1727111931414,3.58293,2665.6,2665.2,41.95978]
[1727111931804,3.2078,2665.6,2665.3,0.37517]
[1727111932002,3.58293,2665.6,2665.2,41.95978]
[1727111932711,3.2078,2665.6,2665.3,2.63]
[1727111932900,3.2078,2665.6,2665.5,0.37514]
[1727111933215,3.2078,2665.6,2665.4,0.37515]
[1727111934508,3.2078,2665.6,2665.5,0.37514]
[1727111936307,3.58289,2665.9,2665.6,0.37512]
[1727111936515,3.2078,2665.9,2665.7,0.37511]
[1727111937413,3.58289,2665.9,2665.6,0.37512]
[1727111937718,3.58289,2665.9,2665.7,0.37511]
[1727111938117,3.2078,2665.9,2665.6,0.37512]
[1727111938505,3.58289,2665.9,2665.6,0.37511]
[1727111939115,3.58289,2665.9,2665.7,0.37511]
[1727111940511,3.58289,2665.9,2665.6,0.37512]
[1727111940723,0.3751,2665.8,2665.5,0.7809]
[1727111941035,3.58289,2665.9,2665.7,0.37511]
[1727111941918,3.2078,2666.3,2666.2,0.37504]
[1727111942309,3.2078,2666.6,2666.3,0.37502]
[1727111942515,0.375,2666.5,2666.4,40.8]
[1727111943912,1.31271,2666.1,2666.0,0.8057]
[1727111944116,1.31271,2666.1,2665.4,1.17145]
[1727111944117,0.93768,2666.0,2665.4,1.17145]
[1727111944323,3.58294,2665.5,2665.4,1.14035]
[1727111944821,3.58294,2665.5,2665.4,41.5652]
[1727111945025,3.2078,2665.5,2665.4,1.14035]
[1727111945721,3.2078,2665.5,2665.4,0.7652]
[1727111945930,3.58294,2665.5,2665.4,1.14035]
[1727111946220,3.2078,2665.5,2665.4,1.14035]
[1727111946922,3.58294,2665.5,2665.4,0.7652]
[1727111947222,3.2078,2665.5,2665.4,0.7652]
[1727111947411,3.58294,2665.5,2665.4,0.7652]
[1727111948927,4.5208,2665.5,2665.4,0.7652]
[1727111950518,3.2078,2665.5,2665.4,1.14035]
[1727111951629,3.58294,2665.5,2665.4,1.14035]
[1727111952217,3.2078,2665.5,2664.8,3.426]
[1727111952418,3.58299,2665.2,2665.1,0.3752]
[1727111953120,3.58299,2665.2,2665.0,1.1116]
[1727111954124,3.58295,2665.5,2665.3,0.37516]
[1727111954325,3.2078,2665.5,2665.4,0.37515]
[1727111954725,3.2078,2665.5,2665.4,41.17515]
[1727111956933,8.2728,2665.5,2665.4,40.8]
[1727111957229,8.2728,2665.5,2665.0,0.7364]
[1727111957230,0.37516,2665.4,2665.0,0.7364]
[1727111957438,3.58295,2665.5,2665.3,0.37516]
[1727111957631,3.2078,2665.5,2665.3,40.8]
[1727111957829,0.37515,2665.4,2665.3,41.17516]
[1727111958133,3.58295,2665.5,2665.3,0.37516]
[1727111958729,3.58295,2665.5,2665.3,41.17516]
[1727111959334,3.2078,2665.5,2665.4,0.37515]
[1727111960737,3.58294,2665.5,2665.3,40.8]
[1727111961034,3.2078,2665.5,2665.4,0.37515]
[1727111961932,0.087,2666.2,2665.7,0.93779]
[1727111962126,3.58283,2666.4,2665.8,0.8026]
[1727111962324,3.58283,2666.4,2666.1,0.37505]
[1727111962629,0.96857347,2667.1,2666.2,2.63]
[1727111962842,0.087,2667.3,2667.0,0.37493]
[1727111963141,3.2078,2667.3,2667.1,0.37491]
[1727111963843,3.2078,2667.3,2667.0,3.00493]
[1727111964030,3.2078,2667.3,2667.1,0.37491]
[1727111964229,3.2078,2667.3,2667.2,40.8]
[1727111964739,0.37491,2667.2,2666.9,0.7262]
[1727111964939,0.37492,2667.2,2666.9,0.7262]
[1727111965325,0.37492,2667.1,2667.0,40.8]
[1727111965529,3.2078,2667.3,2667.0,40.8]
[1727111965736,0.3749,2667.2,2667.0,40.8]
[1727111965936,3.58269,2667.3,2667.0,40.8]
[1727111966436,3.58265,2667.6,2667.2,0.3749]
[1727111966641,0.37486,2667.5,2667.2,0.3749]
[1727111966834,3.58265,2667.6,2667.2,0.3749]
[1727111967029,0.37486,2667.5,2667.2,0.3749]
[1727111967361,0.37486,2667.5,2667.1,0.37491]
[1727111968540,0.37488,2667.4,2667.1,0.37491]
[1727111968740,0.37487,2667.5,2667.1,0.37491]
[1727111968944,0.37487,2667.5,2667.2,0.3749]
[1727111969441,3.2078,2667.6,2667.2,0.3749]
[1727111969643,0.37487,2667.5,2667.2,0.3749]
[1727111970245,0.96857347,2667.9,2667.7,0.37483]
[1727111970534,3.2078,2668.0,2667.8,0.37482]
[1727111970743,3.2078,2668.0,2667.9,0.3748]
[1727111971044,3.2078,2668.0,2667.4,0.93719]
[1727111971045,3.2078,2668.0,2667.8,0.37481]
[1727111971238,3.58259,2668.0,2667.9,0.7328]
[1727111971937,3.2078,2668.0,2667.9,0.7328]